fUST/lending_fUST_20250225
["ID","MTS","AMOUNT","RATE_DAILY","PERIOD"]
[354399157,1740471056472,-500.0,0.00067397,120]
[354399158,1740471056482,-500.0,0.00067397,120]
[354399159,1740471056491,-500.0,0.00067397,120]
[354399160,1740471056501,-500.0,0.00067397,120]
[354399161,1740471056510,-1000.0,0.00067397,20]
[354399162,1740471056519,-677.07,0.00067397,120]
[354399163,1740471056529,-500.0,0.00067397,120]
[354399164,1740471056538,-1100.03,0.00067397,120]
[354399165,1740471056548,-521.66,0.00067397,120]
[354399166,1740471056559,-500.0,0.00067397,120]
[354399167,1740471056569,-500.0,0.00067397,120]
[354399168,1740471056578,-500.0,0.00067397,120]
[354399169,1740471056588,-500.0,0.00067397,120]
[354399170,1740471056598,-500.0,0.00067397,120]
[354399171,1740471056607,-500.0,0.00067397,120]
[354399172,1740471056617,-500.0,0.00067397,120]
[354399173,1740471056626,-500.0,0.00067397,120]
[354399174,1740471056636,-500.0,0.00067397,120]
[354399175,1740471056646,-500.0,0.00067397,120]
[354399176,1740471056655,-500.0,0.00067397,120]
[354399177,1740471056666,-255.28781096,0.00067397,120]
[354399178,1740471056675,-894.27,0.00067397,120]
[354399179,1740471056685,-1169.03,0.00067397,120]
[354399180,1740471056694,-500.0,0.00067397,120]
[354399181,1740471056704,-500.0,0.00067397,120]
[354399182,1740471056713,-500.0,0.00067397,120]
[354399183,1740471056723,-505.67,0.00067397,120]
[354399184,1740471056732,-500.0,0.00067397,120]
[354399185,1740471056742,-500.0,0.00067397,120]
[354399186,1740471056753,-500.0,0.00067397,120]
[354399187,1740471056762,-500.0,0.00067397,120]
[354399188,1740471056772,-500.0,0.00067397,120]
[354399189,1740471056782,-500.0,0.00067397,120]
[354399190,1740471056792,-500.0,0.00067397,120]
[354399191,1740471056802,-1981.16,0.00067397,120]
[354399192,1740471056811,-500.0,0.00067397,120]
[354399193,1740471056821,-500.0,0.00067397,120]
[354399194,1740471056831,-514.35,0.00067397,120]
[354399195,1740471056841,-500.0,0.00067397,120]
[354399196,1740471056851,-500.0,0.00067397,120]
[354399197,1740471056866,-500.0,0.00067397,120]
[354399198,1740471056876,-1786.02,0.00067397,120]
[354399199,1740471056886,-500.0,0.00067397,120]
[354399200,1740471056895,-500.0,0.00067397,120]
[354399201,1740471056907,-500.0,0.00067397,120]
[354399202,1740471056920,-500.0,0.00067397,120]
[354399203,1740471056930,-500.0,0.00067397,120]
[354399204,1740471056940,-250.0,0.00067397,120]
[354399205,1740471056950,-500.0,0.00067397,120]
[354399206,1740471056960,-500.0,0.00067397,120]
[354399207,1740471056970,-500.0,0.00067397,120]
[354399208,1740471056980,-383.29,0.00067397,120]
[354399209,1740471056989,-221.97517115,0.00067397,120]
[354399210,1740471057000,-500.0,0.00067397,120]
[354399211,1740471057010,-500.0,0.00067397,120]
[354399212,1740471057019,-1892.04,0.00067397,120]
[354399213,1740471057029,-698.01,0.00067397,120]
[354399214,1740471057041,-2560.99,0.00067397,120]
[354399215,1740471057052,-500.0,0.00067397,120]
[354399216,1740471057063,-500.0,0.00067397,120]
[354399217,1740471057073,-500.0,0.00067397,120]
[354399218,1740471057082,-500.0,0.00067397,120]
[354399219,1740471057092,-671.79,0.00067397,120]
[354399220,1740471057102,-500.0,0.00067397,120]
[354399221,1740471057111,-578.42,0.00067397,120]
[354399222,1740471057121,-500.0,0.00067397,120]
[354399223,1740471057131,-503.99422419,0.00067397,120]
[354399224,1740471057141,-500.0,0.00067397,120]
[354399225,1740471057152,-2762.36,0.00067397,120]
[354399226,1740471057163,-500.0,0.00067397,120]
[354399227,1740471057173,-500.0,0.00067397,120]
[354399228,1740471057183,-79977.47,0.00067397,7]
[354399229,1740471057193,-500.0,0.00067397,120]
[354399230,1740471057203,-1276.81,0.00067397,3]
[354399231,1740471057214,-500.0,0.00067397,120]
[354399232,1740471057224,-18901.3,0.00067397,120]
[354399233,1740471057234,-5802.92,0.00067397,120]
[354399234,1740471057243,-500.0,0.00067397,120]
[354399235,1740471057254,-500.0,0.00067397,120]
[354399236,1740471057264,-5319.54,0.00067397,120]
[354399237,1740471057274,-500.0,0.00067397,120]
[354399238,1740471057283,-1288.38,0.00067397,120]
[354399239,1740471057293,-500.0,0.00067397,120]
[354399240,1740471057302,-2021.79,0.00067397,120]
[354399241,1740471057312,-500.0,0.00067397,120]
[354399242,1740471057385,-500.0,0.00067397,120]
[354399243,1740471057397,-500.0,0.00067397,120]
[354399244,1740471057408,-500.0,0.00067397,120]
[354399245,1740471057420,-500.0,0.00067397,120]
[354399246,1740471057430,-500.0,0.00067397,120]
[354399247,1740471057440,-500.0,0.00067397,120]
[354399248,1740471057450,-500.0,0.00067397,120]
[354399249,1740471057460,-500.0,0.00067397,120]
[354399250,1740471057470,-500.0,0.00067397,120]
[354399251,1740471057480,-500.0,0.00067397,120]
[354399252,1740471057491,-500.0,0.00067397,7]
[354399253,1740471057501,-500.0,0.00067397,120]
[354399254,1740471057511,-500.0,0.00067397,120]
[354399255,1740471057521,-500.0,0.00067397,120]
[354399256,1740471057531,-500.0,0.00067397,120]
[354399257,1740471057542,-500.0,0.00067397,120]
[354399258,1740471057551,-978.37,0.00067397,120]
[354399259,1740471057561,-500.0,0.00067397,120]
[354399260,1740471057571,-527.1,0.00067397,120]
[354399261,1740471057581,-500.0,0.00067397,120]
[354399262,1740471057590,-500.0,0.00067397,120]
[354399263,1740471057599,-500.0,0.00067397,120]
[354399264,1740471057610,-500.0,0.00067397,120]
[354399265,1740471057619,-802.89,0.00067397,120]
[354399266,1740471057629,-500.0,0.00067397,120]
[354399267,1740471057639,-500.0,0.00067397,120]
[354399268,1740471057649,-1118.64,0.00067397,120]
[354399269,1740471057658,-500.0,0.00067397,120]
[354399270,1740471057669,-500.0,0.00067397,120]
[354399271,1740471057679,-844.51,0.00067397,120]
[354399272,1740471057689,-4769.7,0.00067397,120]
[354399273,1740471057699,-520.83,0.00067397,120]
[354399274,1740471057708,-500.0,0.00067397,120]
[354399275,1740471057719,-2402.43,0.00067397,120]
[354399276,1740471057728,-3964.55,0.00067397,120]
[354399277,1740471057738,-500.0,0.00067671,120]
[354399278,1740471057747,-500.0,0.00067671,120]
[354399279,1740471057757,-1055.85,0.00067671,120]
[354399280,1740471057767,-488.43727938,0.00067671,120]
[354399281,1740471057778,-500.0,0.00067671,120]
[354399282,1740471057787,-500.0,0.00067671,120]
[354399283,1740471057797,-500.0,0.00067671,120]
[354399284,1740471057808,-500.0,0.00067671,120]
[354399285,1740471057817,-176.94415087,0.00067671,120]
[354399286,1740471057827,-500.0,0.00067671,120]
[354399287,1740471057843,-1000.0,0.00067671,20]
[354399288,1740471057863,-677.07,0.00067671,120]
[354399289,1740471057883,-500.0,0.00067671,120]
[354399290,1740471057904,-1100.03,0.00067671,120]
[354399291,1740471057924,-521.66,0.00067671,120]
[354399292,1740471057941,-500.0,0.00067671,120]
[354399293,1740471057961,-500.0,0.00067671,120]
[354399294,1740471057976,-300.20473259,0.00067671,120]
[354399295,1740471057994,-500.0,0.00067671,120]
[354399296,1740471058014,-500.0,0.00067671,120]
[354399297,1740471058035,-500.0,0.00067671,120]
[354399298,1740471058048,-500.0,0.00067671,120]
[354399299,1740471058066,-500.0,0.00067671,120]
[354399300,1740471058083,-500.0,0.00067671,120]
[354399301,1740471058099,-500.0,0.00067671,120]
[354399302,1740471058112,-474.43492455,0.00067671,120]
[354399303,1740471058127,-894.27,0.00067671,120]
[354399304,1740471058143,-1169.03,0.00067671,120]
[354399305,1740471058157,-500.0,0.00067671,120]
[354399306,1740471058173,-500.0,0.00067671,120]
[354399307,1740471058190,-500.0,0.00067671,120]
[354399308,1740471058207,-505.67,0.00067671,120]
[354399309,1740471058222,-500.0,0.00067671,120]
[354399310,1740471058237,-500.0,0.00067671,120]
[354399311,1740471058252,-500.0,0.00067671,120]
[354399312,1740471058267,-500.0,0.00067671,120]
[354399313,1740471058282,-500.0,0.00067671,120]
[354399314,1740471058292,-500.0,0.00067671,120]
[354399315,1740471058302,-500.0,0.00067671,120]
[354399316,1740471058312,-1981.16,0.00067671,120]
[354399317,1740471058322,-500.0,0.00067671,120]
[354399318,1740471058331,-500.0,0.00067671,120]
[354399319,1740471058340,-514.35,0.00067671,120]
[354399320,1740471058351,-500.0,0.00067671,120]
[354399321,1740471058360,-500.0,0.00067671,120]
[354399322,1740471058371,-493.49630779,0.00067671,120]
[354399323,1740471058381,-1786.02,0.00067671,120]
[354399324,1740471058391,-500.0,0.00067671,120]
[354399325,1740471058400,-500.0,0.00067671,120]
[354399326,1740471058410,-500.0,0.00067671,120]
[354399327,1740471058421,-500.0,0.00067671,120]
[354399328,1740471058431,-500.0,0.00067671,120]
[354399329,1740471058441,-250.0,0.00067671,120]
[354399330,1740471058451,-500.0,0.00067671,120]
[354399331,1740471058632,-500.0,0.00067671,120]
[354399332,1740471058643,-500.0,0.00067671,120]
[354399333,1740471058653,-506.50137077,0.00067671,120]
[354399334,1740471058664,-500.0,0.00067671,120]
[354399335,1740471058675,-1892.04,0.00067671,120]
[354399336,1740471058684,-698.01,0.00067671,120]
[354399337,1740471058695,-2560.99,0.00067671,120]
[354399338,1740471058705,-500.0,0.00067671,120]
[354399339,1740471058716,-500.0,0.00067671,120]
[354399340,1740471058726,-500.0,0.00067671,120]
[354399341,1740471058735,-500.0,0.00067671,120]
[354399342,1740471058743,-671.79,0.00067671,120]
[354399343,1740471058752,-500.0,0.00067671,120]
[354399344,1740471058762,-578.42,0.00067671,120]
[354399345,1740471058772,-500.0,0.00067671,120]
[354399346,1740471058782,-500.0,0.00067671,120]
[354399347,1740471058792,-2762.36,0.00067671,120]
[354399348,1740471058803,-500.0,0.00067671,120]
[354399349,1740471058813,-500.0,0.00067671,120]
[354399350,1740471058823,-79977.47,0.00067671,7]
[354399351,1740471058833,-500.0,0.00067671,120]
[354399352,1740471058843,-1276.81,0.00067671,3]
[354399353,1740471058853,-500.0,0.00067671,120]
[354399354,1740471058864,-18901.3,0.00067671,120]
[354399355,1740471058873,-5802.92,0.00067671,120]
[354399356,1740471058887,-500.0,0.00067671,120]
[354399357,1740471058897,-5319.54,0.00067671,120]
[354399358,1740471058907,-500.0,0.00067671,120]
[354399359,1740471058917,-1288.38,0.00067671,120]
[354399360,1740471058928,-500.0,0.00067671,120]
[354399361,1740471058937,-2021.79,0.00067671,120]
[354399362,1740471058948,-500.0,0.00067671,120]
[354399363,1740471058960,-500.0,0.00067671,120]
[354399364,1740471058970,-500.0,0.00067671,120]
[354399365,1740471058979,-500.0,0.00067671,120]
[354399366,1740471058988,-500.0,0.00067671,120]
[354399367,1740471058998,-427.27,0.00067671,120]
[354399368,1740471059008,-500.0,0.00067671,120]
[354399369,1740471059019,-500.0,0.00067671,120]
[354399370,1740471059029,-500.0,0.00067671,120]
[354399371,1740471059039,-500.0,0.00067671,120]
[354399372,1740471059049,-500.0,0.00067671,120]
[354399373,1740471059059,-500.0,0.00067671,7]
[354399374,1740471059069,-500.0,0.00067671,120]
[354399375,1740471059079,-500.0,0.00067671,120]
[354399376,1740471059089,-500.0,0.00067671,120]
[354399377,1740471059099,-434.24257258,0.00067671,120]
[354399378,1740471059110,-500.0,0.00067671,120]
[354399379,1740471059119,-978.37,0.00067671,120]
[354399380,1740471059128,-500.0,0.00067671,120]
[354399381,1740471059137,-527.1,0.00067671,120]
[354399382,1740471059146,-500.0,0.00067671,120]
[354399383,1740471059156,-500.0,0.00067671,120]
[354399384,1740471059166,-265.953402,0.00067671,120]
[354399385,1740471059180,-500.0,0.00067671,120]
[354399386,1740471059189,-802.89,0.00067671,120]
[354399387,1740471059199,-500.0,0.00067671,120]
[354399388,1740471059209,-500.0,0.00067671,120]
[354399389,1740471059218,-1118.64,0.00067671,120]
[354399390,1740471059228,-500.0,0.00067671,120]
[354399391,1740471059238,-500.0,0.00067671,120]
[354399392,1740471059249,-844.51,0.00067671,120]
[354399393,1740471059259,-4769.7,0.00067671,120]
[354399394,1740471059268,-520.83,0.00067671,120]
[354399395,1740471059278,-500.0,0.00067671,120]
[354399396,1740471059287,-2402.43,0.00067671,120]
[354399397,1740471059296,-3964.55,0.00067671,120]
[354399398,1740471059305,-500.53966456,0.00067673,15]
[354399399,1740471059314,-320.47921124,0.00067945,120]
[354399400,1740471059323,-464.2,0.00067945,120]
[354399401,1740471059333,-1055.85,0.00067945,120]
[354399402,1740471059342,-500.0,0.00067945,120]
[354399403,1740471059351,-500.0,0.00067945,120]
[354399404,1740471059360,-500.0,0.00067945,120]
[354399405,1740471059369,-500.0,0.00067945,120]
[354399406,1740471059378,-500.0,0.00067945,120]
[354399407,1740471059388,-1000.0,0.00067945,20]
[354399408,1740471059397,-677.07,0.00067945,120]
[354399409,1740471059406,-500.0,0.00067945,120]
[354399410,1740471059416,-1100.03,0.00067945,120]
[354399411,1740471059426,-521.66,0.00067945,120]
[354399412,1740471059435,-500.0,0.00067945,120]
[354399413,1740471059444,-500.0,0.00067945,120]
[354399414,1740471059455,-500.0,0.00067945,120]
[354399415,1740471059467,-500.0,0.00067945,120]
[354399416,1740471059476,-500.0,0.00067945,120]
[354399417,1740471059486,-500.0,0.00067945,120]
[354399418,1740471059496,-500.0,0.00067945,120]
[354399419,1740471059506,-500.0,0.00067945,120]
[354399420,1740471059515,-500.0,0.00067945,120]
[354399421,1740471059525,-894.27,0.00067945,120]
[354399422,1740471059535,-1169.03,0.00067945,120]
[354399423,1740471059544,-500.0,0.00067945,120]
[354399424,1740471059558,-500.0,0.00067945,120]
[354399425,1740471059569,-500.0,0.00067945,120]
[354399426,1740471059579,-505.67,0.00067945,120]
[354399427,1740471059588,-500.0,0.00067945,120]
[354399428,1740471059598,-500.0,0.00067945,120]
[354399429,1740471059607,-500.0,0.00067945,120]
[354399430,1740471059617,-500.0,0.00067945,120]
[354399431,1740471059626,-500.0,0.00067945,120]
[354399432,1740471059635,-500.0,0.00067945,120]
[354399433,1740471059644,-1981.16,0.00067945,120]
[354399434,1740471059654,-500.0,0.00067945,120]
[354399435,1740471059665,-500.0,0.00067945,120]
[354399436,1740471059674,-514.35,0.00067945,120]
[354399437,1740471059684,-500.0,0.00067945,120]
[354399438,1740471059693,-500.0,0.00067945,120]
[354399439,1740471059704,-1786.02,0.00067945,120]
[354399440,1740471059714,-500.0,0.00067945,120]
[354399441,1740471059723,-581.34643845,0.00067945,120]
[354399442,1740471059733,-500.0,0.00067945,120]
[354399443,1740471059743,-500.0,0.00067945,120]
[354399444,1740471059752,-503.28434814,0.00067945,120]
[354399445,1740471059762,-250.0,0.00067945,120]
[354399446,1740471059772,-500.0,0.00067945,120]
[354399447,1740471059781,-500.0,0.00067945,120]
[354399448,1740471059790,-500.0,0.00067945,120]
[354399449,1740471059801,-500.0,0.00067945,120]
[354399450,1740471059811,-1892.04,0.00067945,120]
[354399451,1740471059820,-698.01,0.00067945,120]
[354399452,1740471059832,-2560.99,0.00067945,120]
[354399453,1740471059843,-500.0,0.00067945,120]
[354399454,1740471059854,-500.0,0.00067945,120]
[354399455,1740471059869,-500.0,0.00067945,120]
[354399456,1740471059879,-500.0,0.00067945,120]
[354399457,1740471059889,-671.79,0.00067945,120]
[354399458,1740471059899,-500.0,0.00067945,120]
[354399459,1740471059909,-578.42,0.00067945,120]
[354399460,1740471059924,-556.94,0.00067945,120]
[354399461,1740471059934,-500.0,0.00067945,120]
[354399462,1740471059944,-2762.36,0.00067945,120]
[354399463,1740471059957,-500.0,0.00067945,120]
[354399464,1740471059967,-500.0,0.00067945,120]
[354399465,1740471059976,-79977.47,0.00067945,7]
[354399466,1740471059988,-500.0,0.00067945,120]
[354399467,1740471059998,-1276.81,0.00067945,3]
[354399468,1740471060008,-500.0,0.00067945,120]
[354399469,1740471060019,-18901.3,0.00067945,120]
[354399470,1740471060028,-5802.92,0.00067945,120]
[354399471,1740471060039,-500.0,0.00067945,120]
[354399472,1740471060050,-5319.54,0.00067945,120]
[354399473,1740471060060,-500.0,0.00067945,120]
[354399474,1740471060071,-1288.38,0.00067945,120]
[354399475,1740471060084,-500.0,0.00067945,120]
[354399476,1740471060097,-2021.79,0.00067945,120]
[354399477,1740471060110,-500.0,0.00067945,120]
[354399478,1740471060120,-500.0,0.00067945,120]
[354399479,1740471060130,-500.0,0.00067945,120]
[354399480,1740471060140,-500.0,0.00067945,120]
[354399481,1740471060151,-500.0,0.00067945,120]
[354399482,1740471060165,-500.0,0.00067945,120]
[354399483,1740471060176,-500.0,0.00067945,120]
[354399484,1740471060187,-500.0,0.00067945,120]
[354399485,1740471060198,-500.0,0.00067945,120]
[354399486,1740471060209,-500.0,0.00067945,120]
[354399487,1740471060220,-500.0,0.00067945,7]
[354399488,1740471060231,-500.0,0.00067945,120]
[354399489,1740471060242,-500.0,0.00067945,120]
[354399490,1740471060252,-288.59471442,0.00067945,120]
[354399491,1740471060263,-500.0,0.00067945,120]
[354399492,1740471060273,-978.37,0.00067945,120]
[354399493,1740471060283,-500.0,0.00067945,120]
[354399494,1740471060292,-527.1,0.00067945,120]
[354399495,1740471060302,-434.85758015,0.00067945,120]
[354399496,1740471060311,-500.0,0.00067945,120]
[354399497,1740471060322,-500.0,0.00067945,120]
[354399498,1740471060332,-802.89,0.00067945,120]
[354399499,1740471060342,-500.0,0.00067945,120]
[354399500,1740471060352,-377.01368621,0.00067945,120]
[354399501,1740471060362,-1118.64,0.00067945,120]
[354399502,1740471060372,-500.0,0.00067945,120]
[354399503,1740471060382,-500.0,0.00067945,120]
[354399504,1740471060392,-844.51,0.00067945,120]
[354399505,1740471060402,-4769.7,0.00067945,120]
[354399506,1740471060411,-520.83,0.00067945,120]
[354399507,1740471060423,-500.0,0.00067945,120]
[354399508,1740471060433,-2402.43,0.00067945,120]
[354399509,1740471060443,-3964.55,0.00067945,120]
[354399510,1740471060452,-2468.99,0.00068,30]
[354399511,1740471060462,-7379.6,0.00068,30]
[354399512,1740471060472,-500.0,0.00068173,15]
[354399513,1740471060483,-1055.85,0.00068219,120]
[354399514,1740471060492,-500.0,0.00068219,120]
[354399515,1740471060502,-505.22082809,0.00068219,120]
[354399516,1740471060512,-500.0,0.00068219,120]
[354399517,1740471060521,-500.0,0.00068219,120]
[354399518,1740471060533,-618.5696242,0.00068219,120]
[354399519,1740471060542,-1000.0,0.00068219,20]
[354399520,1740471060552,-677.07,0.00068219,120]
[354399521,1740471060562,-500.0,0.00068219,120]
[354399522,1740471060572,-1100.03,0.00068219,120]
[354399523,1740471060581,-521.66,0.00068219,120]
[354399524,1740471060591,-500.0,0.00068219,120]
[354399525,1740471060601,-500.0,0.00068219,120]
[354399526,1740471060611,-500.0,0.00068219,120]
[354399527,1740471060621,-500.0,0.00068219,120]
[354399528,1740471060631,-500.0,0.00068219,120]
[354399529,1740471060641,-500.0,0.00068219,120]
[354399530,1740471060650,-500.0,0.00068219,120]
[354399531,1740471060660,-562.27545135,0.00068219,120]
[354399532,1740471060672,-500.0,0.00068219,120]
[354399533,1740471060681,-894.27,0.00068219,120]
[354399534,1740471060691,-1169.03,0.00068219,120]
[354399535,1740471060701,-500.0,0.00068219,120]
[354399536,1740471060711,-500.0,0.00068219,120]
[354399537,1740471060721,-500.0,0.00068219,120]
[354399538,1740471060731,-505.67,0.00068219,120]
[354399539,1740471060741,-500.0,0.00068219,120]
[354399540,1740471060751,-500.0,0.00068219,120]
[354399541,1740471060761,-164.27417929,0.00068219,120]
[354399542,1740471060772,-500.0,0.00068219,120]
[354399543,1740471060781,-500.0,0.00068219,120]
[354399544,1740471060878,-424.52,0.00068219,120]
[354399545,1740471060890,-1981.16,0.00068219,120]
[354399546,1740471060902,-500.0,0.00068219,120]
[354399547,1740471060915,-500.0,0.00068219,120]
[354399548,1740471060925,-514.35,0.00068219,120]
[354399549,1740471060936,-500.0,0.00068219,120]
[354399550,1740471060947,-500.0,0.00068219,120]
[354399551,1740471060957,-1786.02,0.00068219,120]
[354399552,1740471060967,-500.0,0.00068219,120]
[354399553,1740471060977,-500.0,0.00068219,120]
[354399554,1740471060987,-500.0,0.00068219,120]
[354399555,1740471060997,-250.0,0.00068219,120]
[354399556,1740471061007,-500.0,0.00068219,120]
[354399557,1740471061017,-500.0,0.00068219,120]
[354399558,1740471061027,-500.0,0.00068219,120]
[354399559,1740471061037,-500.0,0.00068219,120]
[354399560,1740471061047,-1892.04,0.00068219,120]
[354399561,1740471061056,-698.01,0.00068219,120]
[354399562,1740471061067,-2560.99,0.00068219,120]
[354399563,1740471061077,-500.0,0.00068219,120]
[354399564,1740471061087,-500.0,0.00068219,120]
[354399565,1740471061098,-500.0,0.00068219,120]
[354399566,1740471061108,-500.0,0.00068219,120]
[354399567,1740471061118,-671.79,0.00068219,120]
[354399568,1740471061128,-500.0,0.00068219,120]
[354399569,1740471061139,-578.42,0.00068219,120]
[354399570,1740471061149,-500.0,0.00068219,120]
[354399571,1740471061159,-2762.36,0.00068219,120]
[354399572,1740471061173,-503.52161514,0.00068219,120]
[354399573,1740471061183,-500.0,0.00068219,120]
[354399574,1740471061194,-79977.47,0.00068219,7]
[354399575,1740471061205,-500.0,0.00068219,120]
[354399576,1740471061215,-1276.81,0.00068219,3]
[354399577,1740471061224,-500.0,0.00068219,120]
[354399578,1740471061234,-18901.3,0.00068219,120]
[354399579,1740471061244,-5802.92,0.00068219,120]
[354399580,1740471061255,-500.0,0.00068219,120]
[354399581,1740471061266,-5319.54,0.00068219,120]
[354399582,1740471061276,-500.0,0.00068219,120]
[354399583,1740471061287,-1288.38,0.00068219,120]
[354399584,1740471061299,-500.0,0.00068219,120]
[354399585,1740471061312,-2021.79,0.00068219,120]
[354399586,1740471061323,-500.0,0.00068219,120]
[354399587,1740471061334,-500.0,0.00068219,120]
[354399588,1740471061345,-500.0,0.00068219,120]
[354399589,1740471061355,-500.0,0.00068219,120]
[354399590,1740471061366,-500.0,0.00068219,120]
[354399591,1740471061377,-500.0,0.00068219,120]
[354399592,1740471061387,-481.838,0.00068219,120]
[354399593,1740471061398,-500.0,0.00068219,120]
[354399594,1740471061409,-500.0,0.00068219,120]
[354399595,1740471061425,-500.0,0.00068219,120]
[354399596,1740471061435,-500.0,0.00068219,7]
[354399597,1740471061445,-500.0,0.00068219,120]
[354399598,1740471061455,-500.0,0.00068219,120]
[354399599,1740471061465,-500.0,0.00068219,120]
[354399600,1740471061475,-978.37,0.00068219,120]
[354399601,1740471061485,-503.46569415,0.00068219,120]
[354399602,1740471061495,-527.1,0.00068219,120]
[354399603,1740471061504,-500.0,0.00068219,120]
[354399604,1740471061515,-500.0,0.00068219,120]
[354399605,1740471061525,-802.89,0.00068219,120]
[354399606,1740471061535,-500.0,0.00068219,120]
[354399607,1740471061546,-1118.64,0.00068219,120]
[354399608,1740471061556,-500.0,0.00068219,120]
[354399609,1740471061567,-500.0,0.00068219,120]
[354399610,1740471061576,-844.51,0.00068219,120]
[354399611,1740471061585,-4769.7,0.00068219,120]
[354399612,1740471061595,-520.83,0.00068219,120]
[354399613,1740471061605,-500.0,0.00068219,120]
[354399614,1740471061615,-2402.43,0.00068219,120]
[354399615,1740471061624,-3964.55,0.00068219,120]
[354399616,1740471061634,-3029.62,0.000683,30]
[354399617,1740471061644,-1055.85,0.00068493,120]
[354399618,1740471061654,-500.0,0.00068493,120]
[354399619,1740471061669,-500.0,0.00068493,120]
[354399620,1740471061679,-501.66677192,0.00068493,120]
[354399621,1740471061689,-1000.0,0.00068493,20]
[354399622,1740471061698,-677.07,0.00068493,120]
[354399623,1740471061708,-500.0,0.00068493,120]
[354399624,1740471061718,-1100.03,0.00068493,120]
[354399625,1740471061728,-521.66,0.00068493,120]
[354399626,1740471061738,-500.0,0.00068493,120]
[354399627,1740471061749,-500.0,0.00068493,120]
[354399628,1740471061759,-500.0,0.00068493,120]
[354399629,1740471061769,-500.0,0.00068493,120]
[354399630,1740471061779,-500.0,0.00068493,120]
[354399631,1740471061789,-500.0,0.00068493,120]
[354399632,1740471061799,-500.0,0.00068493,120]
[354399633,1740471061810,-621.53231473,0.00068493,120]
[354399634,1740471061819,-894.27,0.00068493,120]
[354399635,1740471061829,-1169.03,0.00068493,120]
[354399636,1740471061838,-500.0,0.00068493,120]
[354399637,1740471061849,-500.0,0.00068493,120]
[354399638,1740471061859,-500.0,0.00068493,120]
[354399639,1740471061869,-505.67,0.00068493,120]
[354399640,1740471061881,-500.0,0.00068493,120]
[354399641,1740471061891,-500.0,0.00068493,120]
[354399642,1740471061901,-500.0,0.00068493,120]
[354399643,1740471061910,-500.0,0.00068493,120]
[354399644,1740471061926,-1981.16,0.00068493,120]
[354399645,1740471061936,-500.0,0.00068493,120]
[354399646,1740471061946,-500.0,0.00068493,120]
[354399647,1740471061957,-514.35,0.00068493,120]
[354399648,1740471061968,-500.0,0.00068493,120]
[354399649,1740471061980,-500.0,0.00068493,120]
[354399650,1740471061991,-1786.02,0.00068493,120]
[354399651,1740471062001,-500.0,0.00068493,120]
[354399652,1740471062012,-500.0,0.00068493,120]
[354399653,1740471062022,-500.0,0.00068493,120]
[354399654,1740471062033,-250.0,0.00068493,120]
[354399655,1740471062043,-500.0,0.00068493,120]
[354399656,1740471062053,-500.93590628,0.00068493,120]